Cogmind - Beta 13 @@@ ROGUE MODE // 2024.06.09 @ 22:34:42 Player: DuckBoy Result: Destroyed by S-27 Virus with Autogun Performance ------------- Evolutions (5) 2500 Regions Visited (14) 2800 Robots Destroyed (227) 1135 Value Destroyed (8686) 8686 Prototype IDs (41) 820 Alien Tech Used (0) 0 Bonus (3217) 3217 TOTAL SCORE: 19158 Bonus ------- High Alert Combat Kills 1271 Follower Combat Kills 146 Entered Garrisons 200 Used RIF Installer 1000 Aligned with FarCom 300 Met Data Miner 300 Cogmind --------- Core Integrity 0/1000 Matter 65/300 Energy 100/100 System Corruption 1% Temperature Cool (0) Movement Core (50) Location -5/Factory Parts ------- > --- POWER (2) -------- (None) > --- PROPULSION (4) --- (None) > --- UTILITY (7) ------ (None) > --- WEAPON (4) ------- (None) > --- INVENTORY (5) ---- Neutrino Core Improved Cooling System Advanced System Restoration Module Disruptor Cannon Scythe Peak State ------------ > --- POWER ------------ Reinforced Deuterium Engine Micro Fission Core > --- PROPULSION ------- Flexi-carbon Leg Flexi-carbon Leg Improved VSS Leg Advanced Myomer Leg > --- UTILITY ---------- Advanced Heat Sink Advanced Heat Sink Large Storage Unit Improved Transmission Jammer Light Regenerative Plating Graphene Brace Advanced System Restoration Module > --- WEAPON ----------- Tesla Rifle Hypervelocity Coil Gun Mass Driver Power Sword > --- INVENTORY -------- Neutrino Core Flexi-carbon Leg Wheel Nuclear Pulse Thruster Improved Cooling System Superbattery Improved EM Pulse Cannon Disruptor Cannon Mass Driver Precision Grenade Launcher Scatter Rocket Array Improved Remote Datajack Improved Plasma Cutter Scythe [Rating: 99] Favorites ----------- Power Micro Nuclear Core Engine Cooled Ion Engine Power Core Micro Nuclear Core Propulsion Improved Titanium Leg Treads Advanced Treads Leg Improved Titanium Leg Wheel Compact Wheel Utility Large Storage Unit Device Improved Transmission Jammer Storage Large Storage Unit Processor Signal Interpreter Protection Improved Powered Armor Weapon Plasma Cannon Energy Gun Cooled Plasma Rifle Energy Cannon Plasma Cannon Ballistic Gun Minigun Ballistic Cannon Gauss Cannon Launcher Scatter Rocket Array Special Weapon Improved Plasma Cutter Slashing Weapon Scythe Build | -11 -10 -10 -10 -9 -8 -8 -8 -7 -6 -6 -6 -6 -5 -5 ------- Run | Yrd Mat Min Exi Min Mat Gar Mat Fac Fac Low Low Dat Pro Fac Slots Evolved 10 | . . . . . 4 . . 2 2 . . . . 2 Power 1 | . . . . . 1 . . . . . . . . . Propulsion 2 | . . . . . 1 . . 1 . . . . . . Utility 5 | . . . . . 1 . . 1 1 . . . . 2 Weapon 2 | . . . . . 1 . . . 1 . . . . . Parts Attached 211 | 6 9 . . 6 36 20 4 39 28 3 9 . 7 44 Power 25 | 1 . . . . 8 1 . 5 3 . 4 . 1 2 Engine 12 | 1 . . . . 8 1 . . . . 2 . . . Core 13 | . . . . . . . . 5 3 . 2 . 1 2 Reactor . | . . . . . . . . . . . . . . . Propulsion 55 | 2 2 . . 3 11 . . 8 10 . 1 . 2 16 Treads 9 | . . . . 3 6 . . . . . . . . . Leg 42 | 2 . . . . 3 . . 8 10 . 1 . 2 16 Wheel 4 | . 2 . . . 2 . . . . . . . . . Hover . | . . . . . . . . . . . . . . . Flight . | . . . . . . . . . . . . . . . Utility 62 | 1 5 . . 1 5 8 4 14 9 1 1 . 1 12 Device 36 | . 1 . . . 3 4 3 8 7 . 1 . 1 8 Storage 6 | 1 3 . . . 1 . 1 . . . . . . . Processor 1 | . 1 . . . . . . . . . . . . . Hackware . | . . . . . . . . . . . . . . . Protection 19 | . . . . 1 1 4 . 6 2 1 . . . 4 Artifact . | . . . . . . . . . . . . . . . Weapon 69 | 2 2 . . 2 12 11 . 12 6 2 3 . 3 14 Energy Gun 17 | 2 1 . . 1 4 1 . 2 2 . 1 . . 3 Energy Cannon 15 | . . . . . 4 3 . 3 3 1 . . 1 . Ballistic Gun 6 | . . . . . 3 1 . . . . . . . 2 Ballistic Cannon 11 | . . . . . . 2 . 4 . . 1 . . 4 Launcher 16 | . 1 . . 1 1 4 . 2 . 1 1 . 2 3 Special Weapon 1 | . . . . . . . . 1 . . . . . . Impact Weapon . | . . . . . . . . . . . . . . . Slashing Weapon 3 | . . . . . . . . . 1 . . . . 2 Piercing Weapon . | . . . . . . . . . . . . . . . Special Melee Weapon . | . . . . . . . . . . . . . . . Unidentified Prototypes 8 | . . . . . 2 . . 1 2 1 . . . 2 Corrupted Parts 1 | . . . . . . . . . . . . . 1 . System Corruption 1 | . . . . . . . . . . . . . 1 . Parts Lost 54 | . . . . 2 4 3 . 3 4 . 7 . 7 24 Power 6 | . . . . . . 1 . . . . 2 . 1 2 Propulsion 12 | . . . . . 1 . . . 1 . 1 . 2 7 Utility 14 | . . . . . 1 1 . 2 2 . 1 . 1 6 Weapon 22 | . . . . 2 2 1 . 1 1 . 3 . 3 9 Highest Loss Streak 14 | . . . . 2 2 2 . 1 2 . 4 . 5 14 To Critical Strikes . | . . . . . . . . . . . . . . . Average Slot Usage (%) 96 | . 98 100 100 97 98 99 100 99 97 100 97 86 81 89 Engine 7 | . 14 14 14 14 17 18 18 2 . . 4 6 6 4 Core 6 | . . . . . . . . 12 13 13 7 6 5 4 Treads 3 | . . . . 25 22 . . . . . . . . . Leg 20 | . 14 . . . 2 27 27 29 25 26 25 20 19 21 Wheel 1 | . 13 28 28 . 2 . . . . . . . . . Device 16 | . 7 14 14 . 8 9 13 18 18 23 20 20 20 25 Storage 7 | . 14 14 14 14 9 9 9 7 6 6 6 6 6 4 Protection 5 | . . . . 14 8 8 4 3 5 2 6 6 3 2 Energy Gun 6 | . 27 28 28 14 8 5 . . 9 13 12 6 3 1 Energy Cannon 10 | . . . . . 6 12 18 15 14 13 11 6 6 7 Ballistic Gun 2 | . . . . . 10 1 . . . . . . . 4 Ballistic Cannon 2 | . . . . . . 6 9 4 . . . 6 4 4 Naked Turns 9 | . . . . . . . . . . . . . . 9 Heaviest Build 86 | 14 29 20 20 27 60 65 66 70 77 67 76 70 72 86 Greatest Support 90 | 20 26 26 26 40 64 60 60 80 90 90 90 70 70 90 Greatest Overweight (x) 2 | . 1 . . 1 2 1 1 1 1 . . . 2 1 Average Overweight (x) . | . . . . . . . . . . . . . . . Largest Inventory Capacity 15 | 8 15 10 10 10 15 15 15 15 15 15 15 15 15 15 Average Capacity 14 | 6 9 10 10 10 13 15 15 15 15 15 15 15 15 14 Most Carried 15 | 7 11 10 10 10 15 15 15 15 15 15 15 13 14 15 Average Carried 14 | 3 9 10 9 9 13 14 15 14 14 14 14 13 12 14 Final Capacity 15 | 8 10 10 10 10 15 15 15 15 15 15 15 15 15 5 Final Carried 15 | 7 10 10 10 10 15 15 15 15 15 15 13 13 9 5 Class Distribution -------------------- 45% | Skirmisher 28% | Scavenger-Skirmisher 9% | Scavenger-Tank 8% | Mutant 6% | Tank Dominant Class ---------------- Mutant | -10/Materials Mutant | -10/Mines Mutant | -10/Exiles Mutant | -9/Mines Skirmisher | -8/Materials Skirmisher | -8/Garrison Skirmisher | -8/Materials Skirmisher | -7/Factory Scavenger-Skirmisher | -6/Factory Scavenger-Tank | -6/Lower Caves Scavenger-Tank | -6/Lower Caves Tank | -6/Data Miner Tank | -5/Proximity Caves Scavenger-Skirmisher | -5/Factory Resources | -11 -10 -10 -10 -9 -8 -8 -8 -7 -6 -6 -6 -6 -5 -5 ----------- Run | Yrd Mat Min Exi Min Mat Gar Mat Fac Fac Low Low Dat Pro Fac Matter Collected 4252 | 260 68 27 . 109 798 673 109 678 287 30 100 . 169 944 Remotely . | . . . . . . . . . . . . . . . Salvage Created 9173 | 96 86 . . 180 1799 1361 246 809 2034 512 546 . 393 1111 Parts 479 | 1 10 . . 16 102 86 18 47 102 13 19 . 11 54 Haulers Intercepted 8 | . . . . . 5 . 1 . 2 . . . . . Recyclers Shooed 5 | . 1 . . 1 3 . . . . . . . . . Parts Field Recycled . | . . . . . . . . . . . . . . . Retrieved Matter . | . . . . . . . . . . . . . . . Parts Self-Destructed 33 | . . . . . . . . . . 11 16 . 6 . Prevented 3 | . . . . . . . . . . . 1 . 2 . Kills | -11 -10 -10 -10 -9 -8 -8 -8 -7 -6 -6 -6 -6 -5 -5 ------- Run | Yrd Mat Min Exi Min Mat Gar Mat Fac Fac Low Low Dat Pro Fac Combat Hostiles Destroyed 173 | . 4 . . 10 26 39 3 16 23 7 10 . 13 22 Melee 1 | . . . . . 1 . . . . . . . . . Guns 51 | . 1 . . 3 15 11 . 1 11 2 1 . . 6 Cannons 73 | . . . . . 4 19 3 10 11 5 8 . 4 9 AOE 43 | . 3 . . 7 6 8 . 3 . . . . 9 7 Classes Destroyed 18 | 1 4 . . 1 6 2 . 1 1 1 . . 1 . Worker 13 | . 1 . . . 4 . . 3 3 . . . . 2 Builder 5 | . . . . . . . . 2 1 . . . . 2 Tunneler 3 | . . . . . 1 . . . 2 . . . . . Hauler 8 | . . . . . 5 . 1 . 2 . . . . . Recycler 6 | 1 . . . . 2 . . 1 1 . . . . 1 Minesweeper 1 | . . . . . . . . . . 1 . . . . Operator 2 | . . . . . 1 . 1 . . . . . . . Drone 1 | . . . . . . . . . . . . . 1 . Watcher 16 | . 1 . . . 3 . 1 3 7 . . . . 1 Swarmer 40 | . 3 . . 7 . 10 . 4 3 4 3 . 1 5 Grunt 60 | . 1 . . 2 15 13 . 6 8 2 2 . 7 4 Brawler 4 | . . . . . 1 1 . . . . . . 1 1 Duelist 7 | . . . . 1 1 1 . . 1 . 1 . 2 . Sentry 24 | . . . . . 8 7 2 . 3 . 1 . 1 2 Hunter 10 | . . . . . 1 . 1 . 1 1 2 . . 4 Programmer 24 | . . . . . . 6 . 6 6 . . . . 6 Heavy 1 | . . . . . . . . . 1 . . . . . Behemoth 2 | . . . . . . 1 . . . . 1 . . . Best Kill Streak 9 | 1 3 . . 6 8 9 3 4 3 4 2 . 9 7 Combat Bots Only 9 | . 3 . . 6 5 9 2 3 3 4 2 . 9 5 Max Kills in Single Turn 5 | 1 2 . . 3 2 3 1 2 2 2 1 . 4 5 Gunslinging . | . . . . . . . . . . . . . . . Exploded 4 | . 2 . . 2 2 3 . 2 . . . . 4 3 Melee 1 | . . . . . 1 . . . . . . . . . Uniques/NPCs Destroyed . | . . . . . . . . . . . . . . . Combat | -11 -10 -10 -10 -9 -8 -8 -8 -7 -6 -6 -6 -6 -5 -5 -------- Run | Yrd Mat Min Exi Min Mat Gar Mat Fac Fac Low Low Dat Pro Fac Hostile Shots Fired 1105 | . 6 . . 31 89 143 8 113 128 15 102 . 49 421 Missed 383 | . 2 . . 7 28 44 2 35 53 4 40 . 16 152 Damage Taken 12459 | . 46 . . 381 1000 1197 80 1154 1321 184 872 . 978 5246 Core 1860 | . . . . 89 37 319 14 124 102 . 41 . 128 1006 Absorbed by Shields 56 | . . . . . . 56 . . . . . . . . Ignored by Resistances 13 | . . . . . . 3 10 . . . . . . . Regen/Repaired (Parts) 971 | . . . . . . . . 294 253 . . . . 424 Core Remaining (%) 69 | 100 . . . 64 . . 32 82 . . . . 68 . Volleys Fired 513 | 2 9 . . 10 88 100 10 66 82 13 30 . 18 85 Largest 4 | 2 2 . . 2 3 3 3 3 4 4 4 . 3 4 Hottest 265 | 80 80 . . 80 165 208 208 240 240 218 218 . 198 265 Shots Fired 1358 | 4 16 . . 19 215 192 30 171 272 52 100 . 40 247 Gun 518 | 4 14 . . 11 156 47 . 10 126 26 51 . 3 70 Cannon 762 | . . . . . 45 118 30 153 146 26 44 . 30 170 Launcher 78 | . 2 . . 8 14 27 . 8 . . 5 . 7 7 Special . | . . . . . . . . . . . . . . . Kinetic 313 | . . . . . 82 55 10 39 . . . . 15 112 Thermal 902 | . . . . . 112 110 20 114 272 52 90 . 15 117 Explosive 48 | . 2 . . 8 9 11 . 8 . . . . 3 7 Electromagnetic 95 | 4 14 . . 11 12 16 . 10 . . 10 . 7 11 Robot Hit Streak 25 | 2 6 . . 4 25 18 3 7 12 8 8 . 8 12 Robot Miss Streak 10 | 1 3 . . 2 4 6 3 5 4 3 3 . 10 6 Penetration Max 1 | . . . . . 1 1 . 1 . . . . . 1 Secondary Targets 1 | . . . . . 1 . . . . . . . . . Max Gunslinging Chain 1 | . . . . . 1 . . . . . . . . . Shots Hit Robots 696 | 2 7 . . 10 129 93 13 71 134 27 64 . 23 123 Core Hits 383 | 1 9 . . 13 75 64 6 27 55 15 20 . 49 49 Critical Kills 3 | . . . . . . . . 1 . . . . . 2 Critical Parts Destroyed . | . . . . . . . . . . . . . . . Critical Strikes 26 | . . . . . 3 1 1 5 4 3 4 . . 5 Burn 13 | . . . . . 3 . . . 4 3 3 . . . Meltdown 1 | . . . . . . . . 1 . . . . . . Destroy 2 | . . . . . . . . . . . . . . 2 Blast 8 | . . . . . . 1 1 4 . . . . . 2 Corrupt 2 | . . . . . . . . . . . 1 . . 1 Melee Attacks 24 | . . . . . . . . . 13 . . . . 11 Impact . | . . . . . . . . . . . . . . . Slashing 24 | . . . . . . . . . 13 . . . . 11 Piercing . | . . . . . . . . . . . . . . . Sneak Attacks 2 | . . . . . . . . . 2 . . . . . Combat Hostiles . | . . . . . . . . . . . . . . . Follow-up Attacks . | . . . . . . . . . . . . . . . Damage Inflicted 23674 | 30 301 . . 539 3183 3416 326 2677 4076 780 1610 . 2308 4428 Guns 6725 | 30 103 . . 80 1811 781 . 66 1803 359 794 . 46 852 Cannons 11169 | . . . . . 566 1537 326 2113 2146 421 748 . 554 2758 Explosions 5492 | . 198 . . 459 738 1066 . 472 . . 68 . 1708 783 Melee 161 | . . . . . . . . . 126 . . . . 35 Ramming 127 | . . . . . 68 32 . 26 1 . . . . . Kinetic 4101 | . . . . . 855 777 72 644 . . . . 250 1503 Thermal 13641 | . 38 . . . 1490 1541 254 1579 3949 780 1482 . 379 2149 Explosive 4380 | . 160 . . 459 521 868 . 362 . . . . 1433 577 Electromagnetic 1264 | 30 103 . . 80 249 198 . 66 . . 128 . 246 164 Impact . | . . . . . . . . . . . . . . . Slashing 161 | . . . . . . . . . 126 . . . . 35 Piercing . | . . . . . . . . . . . . . . . Highest Corruption 5 | . . . . . 1 2 2 2 1 . . . 1 5 Average Corruption 1 | . . . . . 1 1 1 1 1 . . . 1 1 Corruption Purged 20 | . . . . . . 3 2 3 2 . . . . 10 Corruption Blocked . | . . . . . . . . . . . . . . . Effects 22 | . . . . . 2 6 1 1 2 . . . . 10 Message Errors 3 | . . . . . . . . 1 . . . . . 2 Matter Fused 5 | . . . . . . 1 1 . 1 . . . . 2 Heat Flow Errors 3 | . . . . . . 2 . . . . . . . 1 Energy Discharges 2 | . . . . . . 2 . . . . . . . . Data Loss (minor) 3 | . . . . . 1 . . . . . . . . 2 Data Loss (major) 1 | . . . . . . . . . . . . . . 1 Misfires 2 | . . . . . . . . . 1 . . . . 1 Alerts 3 | . . . . . 1 1 . . . . . . . 1 Overload Shots . | . . . . . . . . . . . . . . . Overflow Damage 632 | . . . . 6 10 141 . 190 47 . . . 12 226 Projectiles 309 | . . . . . . 60 . 107 47 . . . . 95 Explosions 323 | . . . . 6 10 81 . 83 . . . . 12 131 Melee . | . . . . . . . . . . . . . . . Knockbacks 19 | . . . . . 1 5 . 5 . . . . 3 5 Impact 1 | . . . . . 1 . . . . . . . . . Kinetic 17 | . . . . . . 5 . 5 . . . . 2 5 Secondary 1 | . . . . . . . . . . . . . 1 . Self-Inflicted Damage 716 | . . . . 85 92 94 . . . . 19 . 200 226 Shots 28 | . . . . 3 6 4 . . . . 2 . 9 4 Rammed 9 | . . . . . 9 . . . . . . . . . Targets Rammed 17 | . . . . . 10 5 . 1 1 . . . . . Kicked 7 | . . . . . . 5 . 1 1 . . . . . Crushed 1 | . . . . . 1 . . . . . . . . . Highest Temperature 424 | 36 60 . . 80 306 424 165 347 311 30 57 . 48 252 Average Temperature 88 | 20 26 . . 42 87 122 66 113 75 12 23 . 23 57 Received Heat Transfer 2820 | . 24 . . 66 486 297 36 324 243 27 57 . 225 1035 Effects 13 | . . . . . . 9 . 1 3 . . . . . Shutdowns 1 | . . . . . . 1 . . . . . . . . Energy Bleed 3 | . . . . . . 2 . 1 . . . . . . Interference 9 | . . . . . . 6 . . 3 . . . . . Siege Activations . | . . . . . . . . . . . . . . . Robots Corrupted 1 | . . . . . . 1 . . . . . . . . Combat Hostiles 1 | . . . . . . 1 . . . . . . . . Parts Fried 3 | . . . . . 1 1 . . . . . . . 1 Impact Corruptions . | . . . . . . . . . . . . . . . Robots Melted 5 | . . . . . . . . 2 2 . 1 . . . Combat Hostiles 4 | . . . . . . . . 2 1 . 1 . . . Parts Melted 53 | . . . . . 3 5 2 6 19 8 8 . . 2 Heat Transferred 23434 | . 50 . . . 3160 2786 450 2650 6874 1568 2688 . 470 2738 Parts Sabotaged 4 | . . . . . . . . . . . . . . 4 Parts Stolen . | . . . . . . . . . . . . . . . Parts Stripped . | . . . . . . . . . . . . . . . Power Chain Reactions 2 | . 1 . . . . . . . . . . . 1 . Alert | -11 -10 -10 -10 -9 -8 -8 -8 -7 -6 -6 -6 -6 -5 -5 ------- Run | Yrd Mat Min Exi Min Mat Gar Mat Fac Fac Low Low Dat Pro Fac Peak Influence 1459 | 5 171 66 . 374 519 1459 764 372 642 . . . . 1229 Initial 977 | . 3 66 . . 145 182 711 175 182 . . . . 977 Average 429 | 2 88 66 . 281 345 864 628 174 224 . . . . 703 Maximum Alert Level 4 | . . . . 1 2 4 3 1 2 . . . . 4 Low Security (%) 29 | 100 100 100 . 34 8 5 . 67 51 . . . . . Level 1 28 | . . . . 65 63 14 24 32 36 . . . . . Level 2 21 | . . . . . 28 8 8 . 12 . . . . 61 Level 3 13 | . . . . . . 36 67 . . . . . . 33 Level 4 5 | . . . . . . 34 . . . . . . . 4 Level 5 . | . . . . . . . . . . . . . . . High Security . | . . . . . . . . . . . . . . . Max Security . | . . . . . . . . . . . . . . . Squads Dispatched 48 | . . . . . 3 . 2 9 18 . . . . 16 Investigation 19 | . . . . . 1 . 1 3 8 . . . . 6 Extermination 13 | . . . . . . . . 5 5 . . . . 3 Reinforcement 11 | . . . . . 2 . 1 1 4 . . . . 3 Assault 5 | . . . . . . . . . 1 . . . . 4 Garrison . | . . . . . . . . . . . . . . . Intercept . | . . . . . . . . . . . . . . . Searches Triggered 3 | . . . . . . . . . . . . . . 3 Data Miner Redirects 1 | . . . . . . . . . . . . . . 1 Construction Impeded 1 | . . . . . 1 . . . . . . . . . Haulers Reinforced 3 | . . . . . . . . 1 1 . . . . 1 Active Scanning Responses . | . . . . . . . . . . . . . . . Cargo Convoy Interrupts 1 | . . . . . . . . . 1 . . . . . Stealth | -11 -10 -10 -10 -9 -8 -8 -8 -7 -6 -6 -6 -6 -5 -5 --------- Run | Yrd Mat Min Exi Min Mat Gar Mat Fac Fac Low Low Dat Pro Fac Distress Signals 6 | . 1 . . . . . . 3 1 . . . . 1 Communications Jammed 61 | . . . . . . . . 16 5 . . . 1 39 Distress Signals 57 | . . . . . . . . 15 3 . . . . 39 Times Spotted 294 | . 5 . . 11 39 35 4 32 43 7 11 . 18 89 Peak Tracking Total 25 | . 2 . . 4 4 5 3 4 4 4 4 . 5 25 Tactical Retreats 27 | . . . . 1 1 2 . 4 4 . . . . 15 Traps | -11 -10 -10 -10 -9 -8 -8 -8 -7 -6 -6 -6 -6 -5 -5 ------- Run | Yrd Mat Min Exi Min Mat Gar Mat Fac Fac Low Low Dat Pro Fac Traps Triggered 22 | . . . . . 3 7 1 5 4 . . . . 2 Indirectly 3 | . . . . . 3 . . . . . . . . . Trap Hack Attempts . | . . . . . . . . . . . . . . . Triggered . | . . . . . . . . . . . . . . . Disarmed . | . . . . . . . . . . . . . . . Reprogrammed . | . . . . . . . . . . . . . . . Reused . | . . . . . . . . . . . . . . . Traps Extracted . | . . . . . . . . . . . . . . . Installed . | . . . . . . . . . . . . . . . Triggered 2 | . . . . . . . . . 1 1 . . . . Machines | -11 -10 -10 -10 -9 -8 -8 -8 -7 -6 -6 -6 -6 -5 -5 ---------- Run | Yrd Mat Min Exi Min Mat Gar Mat Fac Fac Low Low Dat Pro Fac Machines Disabled 44 | . 1 . . 4 5 5 1 4 8 . 1 . 1 14 Max in Single Turn 4 | . 1 . . 4 2 1 1 1 2 . 1 . 1 3 Garrison Access 3 | . . . . . . . . 1 1 . . . . 1 Machines Repaired . | . . . . . . . . . . . . . . . Machines Dismantled 3 | . . . . . . . . 3 . . . . . . Machines Sabotaged . | . . . . . . . . . . . . . . . Overloaded Fab Kills . | . . . . . . . . . . . . . . . Hacking | -11 -10 -10 -10 -9 -8 -8 -8 -7 -6 -6 -6 -6 -5 -5 --------- Run | Yrd Mat Min Exi Min Mat Gar Mat Fac Fac Low Low Dat Pro Fac Machines Accessed 65 | . 4 . 2 . 7 3 1 13 21 1 . 3 . 10 Terminals 32 | . 4 . . . 5 3 1 6 9 . . . . 4 Fabricators 7 | . . . . . . . . 1 4 . . . . 2 Repair Stations 7 | . . . . . 1 . . 2 3 . . . . 1 Recycling Units 4 | . . . . . . . . 1 1 . . . . 2 Scanalyzers 3 | . . . . . . . . 1 2 . . . . . Garrison Access 6 | . . . . . 1 . . 2 2 . . . . 1 Total Hacks 208 | . 11 . 5 . 19 6 5 38 66 1 . 25 . 32 Successful 115 | . 3 . 5 . 8 1 3 22 35 1 . 25 . 12 Failed 93 | . 8 . . . 11 5 2 16 31 . . . . 20 Catastrophic 21 | . 2 . . . 1 2 . 3 9 . . . . 4 Database Lockouts . | . . . . . . . . . . . . . . . Manual 78 | . 8 . 1 . 10 . 5 20 21 . . . . 13 Terminals 90 | . 11 . . . 16 6 5 15 21 . . . . 16 Fabricators 19 | . . . . . . . . 1 13 . . . . 5 Repair Stations 24 | . . . . . 2 . . 7 11 . . . . 4 Recycling Units 11 | . . . . . . . . 4 2 . . . . 5 Scanalyzers 20 | . . . . . . . . 8 12 . . . . . Garrison Access 13 | . . . . . 1 . . 3 7 . . . . 2 Terminal Hacks 48 | . 3 . 5 . 5 1 2 1 3 1 . 25 . 2 Record 15 | . . . 4 . . . . . . . . 11 . . Part Schematic 13 | . 2 . . . . . . . . . . 11 . . Robot Schematic 2 | . 1 . . . . . . . 1 . . . . . Prototype ID Bank 3 | . . . . . . . . . . . . 3 . . Open Door 1 | . . . . . . . . . . 1 . . . . Branch Access Points 1 | . . . . . . . . . . . . . . 1 Emergency Access Points 1 | . . . . . . 1 . . . . . . . . Terminal Index 2 | . . . . . . . . 1 1 . . . . . Unreport Threat 6 | . . . . . 2 . 2 . 1 . . . . 1 Transport Status 1 | . . . . . 1 . . . . . . . . . Zone Layout 2 | . . . . . 2 . . . . . . . . . Derelict Proto ID Bank 1 | . . . 1 . . . . . . . . . . . Fabricator Hacks 12 | . . . . . . . . 1 6 . . . . 5 Network Status 1 | . . . . . . . . . . . . . . 1 Load Schematic 5 | . . . . . . . . . 3 . . . . 2 Build 6 | . . . . . . . . 1 3 . . . . 2 Repair Station Hacks 16 | . . . . . 2 . . 5 8 . . . . 1 Scan Component 10 | . . . . . 1 . . 3 5 . . . . 1 Repair 6 | . . . . . 1 . . 2 3 . . . . . Recycling Unit Hacks 1 | . . . . . . . . . . . . . . 1 Retrieve Components 1 | . . . . . . . . . . . . . . 1 Scanalyzer 16 | . . . . . . . . 7 9 . . . . . Insert Component 7 | . . . . . . . . 3 4 . . . . . Analyze 9 | . . . . . . . . 4 5 . . . . . Garrison Access Hacks 9 | . . . . . 1 . . 3 3 . . . . 2 Unlock Access 1 | . . . . . 1 . . . . . . . . . Seal Access 3 | . . . . . . . . 1 1 . . . . 1 Coupler Status 5 | . . . . . . . . 2 2 . . . . 1 Unauthorized Hacks 13 | . . . . . . . 1 5 6 . . . . 1 Terminals 6 | . . . . . . . 1 2 2 . . . . 1 Assimilate 2 | . . . . . . . . 1 . . . . . 1 Botnet 4 | . . . . . . . 1 1 2 . . . . . Fabricators . | . . . . . . . . . . . . . . . Repair Stations . | . . . . . . . . . . . . . . . Recycling Units 5 | . . . . . . . . 3 2 . . . . . Reject 2 | . . . . . . . . 1 1 . . . . . Recyclers 1 | . . . . . . . . 1 . . . . . . Mask 2 | . . . . . . . . 1 1 . . . . . Scanalyzers . | . . . . . . . . . . . . . . . Garrison Access 2 | . . . . . . . . . 2 . . . . . Broadcast 1 | . . . . . . . . . 1 . . . . . Eject 1 | . . . . . . . . . 1 . . . . . Data Cores Recovered 1 | . . . . . . . 1 . . . . . . . Used 1 | . . . . . . . 1 . . . . . . . Hacking Detections 54 | . 4 . . . 5 2 1 12 21 . . . . 9 Full Trace Events 17 | . . . . . 1 . . 3 7 . . . . 6 Feedback Events . | . . . . . . . . . . . . . . . Feedback Blocked . | . . . . . . . . . . . . . . . Robot Schematics Acquired 2 | . 1 . . . . . . . 1 . . . . . Robots Built 2 | . . . . . . . . . 1 . . . . 1 Authchips . | . . . . . . . . . . . . . . . Time 192 | . . . . . . . . . 76 . . . . 116 Total Robot Build Rating 8 | . . . . . . . . . 5 . . . . 3 Part Schematics Acquired 18 | . 2 . . . . . . 2 3 . . 11 . . Parts Built 5 | . . . . . . . . 1 3 . . . . 1 Authchips . | . . . . . . . . . . . . . . . Time 603 | . . . . . . . . 169 282 . . . . 152 Total Part Build Rating 28 | . . . . . . . . 6 17 . . . . 5 Parts Repaired 6 | . . . . . 1 . . 2 3 . . . . . Time 264 | . . . . . 64 . . 44 156 . . . . . Parts Recycled . | . . . . . . . . . . . . . . . Recycled Matter . | . . . . . . . . . . . . . . . Retrieved Matter . | . . . . . . . . . . . . . . . Retrieved Components 2 | . . . . . . . . . . . . . . 2 Parts Scanalyzed 7 | . . . . . . . . 3 4 . . . . . Part Schematics Acquired 5 | . . . . . . . . 2 3 . . . . . Parts Damaged 1 | . . . . . . . . . 1 . . . . . Bothacking | -11 -10 -10 -10 -9 -8 -8 -8 -7 -6 -6 -6 -6 -5 -5 ------------ Run | Yrd Mat Min Exi Min Mat Gar Mat Fac Fac Low Low Dat Pro Fac Used RIF Installer 2 | . . . . . . 2 . . . . . . . . Patrol Navigation 1 | . . . . . . 1 . . . . . . . . Robots Hacked . | . . . . . . . . . . . . . . . Non-combat . | . . . . . . . . . . . . . . . Combat . | . . . . . . . . . . . . . . . Robot Hacks Applied . | . . . . . . . . . . . . . . . Relay Couplers Released 8 | . . . . . . . . 2 4 . . . . 2 Ejected 4 | . . . . . . . . . 4 . . . . . Machine Destruction 4 | . . . . . . . . 2 . . . . . 2 Fabnet Peak Effective % . | . . . . . . . . . . . . . . . Robots Rewired 4 | . . . . . . 3 . . . . . . 1 . Allies Hacked . | . . . . . . . . . . . . . . . Hacks Repelled . | . . . . . . . . . . . . . . . Allies | -11 -10 -10 -10 -9 -8 -8 -8 -7 -6 -6 -6 -6 -5 -5 -------- Run | Yrd Mat Min Exi Min Mat Gar Mat Fac Fac Low Low Dat Pro Fac Total Allies 9 | . . . . . . 3 . 1 1 . . . 2 2 Largest Group 3 | . . . . . . 3 . 1 1 . . . 1 2 Highest-Rated Group 96 | . . . . . . 54 . 10 23 . . . 96 49 Highest-Rated Ally 96 | . . . . . . 18 . 10 23 . . . 96 29 Total Orders 8 | . . . . . . . . . 2 . . . . 6 STAY 4 | . . . . . . . . . 1 . . . . 3 AID 3 | . . . . . . . . . . . . . . 3 DROP 1 | . . . . . . . . . 1 . . . . . Ally Attacks 27 | . . . . . . 3 . . . . . . 21 3 Total Damage 539 | . . . . . . 91 . . . . . . 428 20 Kills 5 | . . . . . . 1 . . . . . . 4 . Allies Corrupted 1 | . . . . . . . . . 1 . . . . . Allies Melted . | . . . . . . . . . . . . . . . Intel | -11 -10 -10 -10 -9 -8 -8 -8 -7 -6 -6 -6 -6 -5 -5 ------- Run | Yrd Mat Min Exi Min Mat Gar Mat Fac Fac Low Low Dat Pro Fac Robot Analysis Total . | . . . . . . . . . . . . . . . Derelict Logs Recovered 4 | . . 1 . . . . . . . . 1 . 2 . Drone Launches . | . . . . . . . . . . . . . . . Drone Recoveries . | . . . . . . . . . . . . . . . Exploration | -11 -10 -10 -10 -9 -8 -8 -8 -7 -6 -6 -6 -6 -5 -5 ------------- Run | Yrd Mat Min Exi Min Mat Gar Mat Fac Fac Low Low Dat Pro Fac Turns Passed 18029 | 88 376 65 215 183 2585 2170 528 2325 4185 543 771 99 849 3047 Spaces Moved 10123 | 59 310 61 236 89 1213 1026 263 1303 2373 399 535 83 390 1783 Core 23 | 7 . . . . . . . . . . . . . 16 Treads 1032 | . . . . 89 943 . . . . . . . . . Legs 8447 | 52 130 . . . 126 1026 263 1303 2373 399 535 83 390 1767 Wheels 621 | . 180 61 236 . 144 . . . . . . . . . Hover . | . . . . . . . . . . . . . . . Flight . | . . . . . . . . . . . . . . . Fastest Speed 50 | 50 90 90 90 160 105 130 130 130 120 120 120 120 120 50 Average Speed 138 | 111 105 90 90 163 146 167 164 130 148 120 120 120 132 130 Slowest Speed 270 | 120 190 90 90 240 270 200 200 200 200 120 120 120 260 190 Overloaded Moves . | . . . . . . . . . . . . . . . Propulsion Burnouts . | . . . . . . . . . . . . . . . Robots Hopped . | . . . . . . . . . . . . . . . Cave-ins Triggered . | . . . . . . . . . . . . . . . Exploration Rate (%) 48 | 5 49 20 62 24 78 86 22 31 55 60 56 70 63 44 Regions Visited 14 Branch Regions 7 Pre-discovered Areas 3 | . . 1 1 . . . . . . . . 1 . . Known Exits Taken 1 | . . . . . 1 . . . . . . . . . Unknown Exits Taken 12 | 1 1 1 1 1 . . 1 1 1 1 1 1 1 . Scrap Searched 6 | . . 1 . . . . . . . 2 3 . . . Spaces Dug 76 | . 7 . . . 7 8 . . 20 . . . . 34 Terrain Destroyed 788 | . 15 . . 84 58 60 16 120 59 12 18 . 93 253 Melee 18 | . . . . . . . . . 8 . . . . 10 Projectile 205 | . . . . . 1 1 16 15 51 12 18 . 7 84 AOE 565 | . 15 . . 84 57 59 . 105 . . . . 86 159 Terrain Rammed . | . . . . . . . . . . . . . . . Walls Destroyed . | . . . . . . . . . . . . . . . Machines Disabled . | . . . . . . . . . . . . . . . Actions | -11 -10 -10 -10 -9 -8 -8 -8 -7 -6 -6 -6 -6 -5 -5 --------- Run | Yrd Mat Min Exi Min Mat Gar Mat Fac Fac Low Low Dat Pro Fac Total 12983 | 74 341 70 239 106 1860 1314 335 1716 2825 429 600 82 683 2309 Wait 1827 | 1 5 10 . . 458 122 58 226 297 13 18 . 267 352 Move 10109 | 58 309 60 235 88 1212 1025 262 1302 2372 398 534 82 389 1783 Hop . | . . . . . . . . . . . . . . . Pick Up 81 | 7 5 . 2 2 22 10 . 3 10 1 4 . 1 14 Fast Attach 74 | 6 2 . . 1 13 2 . 22 11 . . . 2 15 Attach 40 | . . . . 2 4 2 . 3 6 . 6 . 5 12 Detach 9 | . . . . . . . . . 3 . 1 . . 5 Swap 97 | . 7 . . 3 19 16 4 14 11 3 3 . . 17 Drop 103 | . 4 . 2 . 34 11 1 12 19 1 4 . . 15 Fire 513 | 2 9 . . 10 88 100 10 66 82 13 30 . 18 85 Melee 24 | . . . . . . . . . 13 . . . . 11 Ram . | . . . . . . . . . . . . . . . Kick 7 | . . . . . . 5 . 1 1 . . . . . Crush 10 | . . . . . 10 . . . . . . . . . Escape Stasis 10 | . . . . . . 10 . . . . . . . . Rewire 12 | . . . . . . 11 . . . . . . 1 . Trap . | . . . . . . . . . . . . . . . Miscellaneous 67 | . . . . . . . . 67 . . . . . . Route ------- -11/Scrapyard -10/Materials (discovered 3 exits: [*Mat] / [*Min x2]) -10/Mines (discovered 2 exits: [*Mat] / *Exi) -10/Exiles -9/Mines -8/Materials (discovered 3 exits: *Fac x2 / Gar) -8/Garrison (discovered 3 exits: *Mat x3) -8/Materials -7/Factory (discovered 2 exits: *Fac / [*Low]) -6/Factory -6/Lower Caves -6/Lower Caves (discovered 2 exits: *Fac / *Dat) -6/Data Miner -5/Proximity Caves -5/Factory (discovered 6 exits: *Fac x2 / *Upp x2 / *Ext x2) History --------- Turn | Location | Event 2 | -11/Scrapyard | Discovered new exit (range 16) 89 | -11/Scrapyard | Entered Materials 308 | -10/Materials | Build established: Mutant 335 | -10/Materials | Discovered new exit (range 15) 451 | -10/Materials | Discovered new exit (range 16) 455 | -10/Materials | Discovered new exit (range 6) 465 | -10/Materials | Entered Mines 495 | -10/Mines | Discovered new exit (range 8) 526 | -10/Mines | Deemed a non-threat by the Exiles lab entrance 526 | -10/Mines | Discovered new exit (range 5) 530 | -10/Mines | Entered Exiles 552 | -10/Exiles | Met 8R-AWN 567 | -10/Exiles | Met EX-HEX 597 | -10/Exiles | Met EX-BIN 608 | -10/Exiles | Aligned with FarCom system 609 | -10/Exiles | Given EX-Vault access code 630 | -10/Exiles | Opened EX-Vault 636 | -10/Exiles | Found Superbattery 655 | -10/Exiles | Warned to stay clear of 0b10 Research branches 681 | -10/Exiles | Met EX-DEC 690 | -10/Exiles | Learned location of Zion (-7) 734 | -10/Exiles | Discovered new exit (range 14) 745 | -10/Exiles | Left Exiles lab with Superbattery 745 | -10/Exiles | Entered Mines 904 | -9/Mines | Discovered new exit (range 9) 928 | -9/Mines | Entered Materials 928 | -8/Materials | Evolved 4 slots: Power x1, Propulsion x1, Utility x1, Weapon x1 1305 | -8/Materials | Discovered new exit (range 15) 1523 | -8/Materials | Build established: Scavenger-Skirmisher 1887 | -8/Materials | Repaired Broken Adv. Beam Cannon 2175 | -8/Materials | Build established: Skirmisher 3284 | -8/Materials | Discovered new exit (range 10) 3512 | -8/Materials | Identified exit to Garrison 3513 | -8/Materials | Entered Garrison 3635 | -8/Garrison | Triggered checkpoint 3659 | -8/Garrison | Triggered checkpoint 3847 | -8/Garrison | Triggered checkpoint 3865 | -8/Garrison | Triggered checkpoint 3896 | -8/Garrison | Lost 3 allies 3989 | -8/Garrison | Triggered checkpoint 4001 | -8/Garrison | Triggered checkpoint 4041 | -8/Garrison | Destroyed 9 combat bots 4082 | -8/Garrison | Discovered new exit (range 11) 4186 | -8/Garrison | Triggered checkpoint 4239 | -8/Garrison | Core integrity fell below 50% 4477 | -8/Garrison | Discovered new exit (range 8) 4497 | -8/Garrison | Triggered checkpoint 4752 | -8/Garrison | Triggered checkpoint 4876 | -8/Garrison | Spotted B-75 Beast 4932 | -8/Garrison | Destroyed B-75 Beast 4990 | -8/Garrison | Found Imp. Powered Armor 5235 | -8/Garrison | Discovered new exit (range 11) 5311 | -8/Garrison | Triggered checkpoint 5331 | -8/Garrison | Installed Relay Interface Framework 5575 | -8/Garrison | Expanded RIF knowledge: Patrol Navigation 5683 | -8/Garrison | Entered Materials 6089 | -8/Materials | Discovered new exit (range 11) 6211 | -8/Materials | Entered Factory 6211 | -7/Factory | Evolved 2 slots: Propulsion x1, Utility x1 7115 | -7/Factory | Discovered new exit (range 14) 7574 | -7/Factory | Fabricated Enh. Coil Gun? 7772 | -7/Factory | Repaired Imp. Titanium Leg 7796 | -7/Factory | Repaired Imp. Titanium Leg 8449 | -7/Factory | Discovered new exit (range 7) 8536 | -7/Factory | Entered another Factory area 8536 | -6/Factory | Evolved 2 slots: Utility x1, Weapon x1 8681 | -6/Factory | Fabricated M-22 Extractor? 9025 | -6/Factory | Repaired Imp. Powered Armor 9262 | -6/Factory | Cargo convoy interrupted 10033 | -6/Factory | Build established: Scavenger-Skirmisher 10167 | -6/Factory | Found Prototype Launcher 10643 | -6/Factory | Fabricated Nuclear Pulse Thruster? 11464 | -6/Factory | Repaired Energy Filter 11522 | -6/Factory | Repaired Adv. System Restoration Module? 11953 | -6/Factory | Fabricated Adv. Myomer Leg? 12386 | -6/Factory | First assault squad dispatched 12700 | -6/Factory | Discovered new exit (range 3) 12721 | -6/Factory | Entered Lower Caves 12970 | -6/Lower Caves | Identified Scatter Rocket Array 13235 | -6/Lower Caves | Discovered new exit (range 7) 13264 | -6/Lower Caves | Entered another Lower Caves area 13310 | -6/Lower Caves | Build established: Tank 13329 | -6/Lower Caves | Encountered a Warlord checkpoint 13332 | -6/Lower Caves | Discovered new exit (range 3) 13610 | -6/Lower Caves | Learned 8 Factory zone layouts 13613 | -6/Lower Caves | Build established: Scavenger-Tank 13671 | -6/Lower Caves | Attracted the attention of an 0b10 outpost 13779 | -6/Lower Caves | Spotted B-75 Beast 13851 | -6/Lower Caves | Destroyed B-75 Beast 13961 | -6/Lower Caves | Lost 4 parts (1p1n2w) 14014 | -6/Lower Caves | Discovered new exit (range 12) 14035 | -6/Lower Caves | Entered Data Miner 14035 | -6/Data Miner | Discovered new exit (range 6) 14058 | -6/Data Miner | Met Data Miner 14087 | -6/Data Miner | Learned location of Section 7 (-3) 14087 | -6/Data Miner | Acquired the access code to Warlord's prototype stash 14107 | -6/Data Miner | Received God Mode back door access code from Data Miner 14134 | -6/Data Miner | Entered Proximity Caves 14266 | -5/Proximity Caves | Received a Behemoth hack from an annoying Tinkerer 14274 | -5/Proximity Caves | Build established: Tank 14547 | -5/Proximity Caves | Spotter reported a threat 14576 | -5/Proximity Caves | Spotter reported a threat 14600 | -5/Proximity Caves | Spotter reported a threat 14602 | -5/Proximity Caves | Escorted by Enhanced Grunt 14644 | -5/Proximity Caves | Lost 5 parts (1p2n1u1w) 14683 | -5/Proximity Caves | Attracted the attention of an 0b10 outpost 14701 | -5/Proximity Caves | Spotter reported a threat 14727 | -5/Proximity Caves | Spotter reported a threat 14729 | -5/Proximity Caves | Destroyed 9 combat bots 14754 | -5/Proximity Caves | Spotter reported a threat 14767 | -5/Proximity Caves | Learned location of 1 exit from Factory 14912 | -5/Proximity Caves | Discovered new exit (range 11) 14983 | -5/Proximity Caves | Entered Factory 14983 | -5/Factory | Accompanied by 1 ally 14983 | -5/Factory | Evolved 2 slots: Utility x2 14984 | -5/Factory | Identified exit to Extension 14985 | -5/Factory | Identified exit to Factory 14985 | -5/Factory | Identified exit to Upper Caves 15282 | -5/Factory | Build established: Scavenger-Skirmisher 15283 | -5/Factory | Search patrols dispatched 15366 | -5/Factory | Discovered exit to Factory (range 4) 15464 | -5/Factory | Discovered exit to Upper Caves (range 5) 15583 | -5/Factory | Search patrols dispatched 15883 | -5/Factory | Search patrols dispatched 15970 | -5/Factory | Fabricated M-28 Smith? 16610 | -5/Factory | Build established: Scavenger-Tank 17344 | -5/Factory | Fabricated Lgt. Regenerative Plating? 17683 | -5/Factory | First assault squad dispatched 17689 | -5/Factory | Build established: Scavenger-Skirmisher 17955 | -5/Factory | Lost 14 parts (2p4n3u5w) 17988 | -5/Factory | Core integrity fell below 50% 17999 | -5/Factory | Incoming assault squad redirected 18023 | -5/Factory | Core integrity fell below 20% 18030 | -5/Factory | Destroyed by S-27 Virus with Autogun Last Messages --------------- 18009_ P-70 Sage destroyed. 18012_ C-30 ARC bursts open, deploying its payload. 18012_ G-67 Veteran unfolds itself. 18012_ L-41 Fighter unfolds itself. 18012_ G-50 Soldier unfolds itself. 18012_ L-41 Fighter unfolds itself. 18012_ E-15 Imp unfolds itself. 18013_ S-27 Virus destroyed. 18014_ K-01 Serf collects debris. 18017_ S-27 Virus destroyed. 18018_ Slug penetrates S-27 Virus. 18018_ Penetrated by Slug. 18021_ Arm. Leg blown off. 18021_ Imp. Transmission Jammer blown off. 18021_ Graphene Brace blown off. 18021_ E-15 Imp destroyed. 18021_ K-01 Serf collects debris. 18021_ Dropped Lrg. Storage Unit. 18022_ Extracted 7 energy. 18027_ K-01 Serf collects debris. Map ----- +----------------------------------------------------+ | #######?# #???# #??# #???# ???????? ????????? | | #+## !#?# #???# #??# #???# ???????? ????????? | | ### ##### #??# #?###+#####??? ????????? | | > #??# #?# #??? ????????? | | ##########+##### ### #??? ????????? | | #+## ## # + #??# #???????? | | ###+#### """"""" # ### #??# #???????? | | #??? ## """"""" # #?# #??# #??###### | | #??? ## """"""" # #?# #?? ?# | | #??? ## """"""" # #?# #?? < ?# "" | | #??? ## # ### #?? ?# "" | | #???################## + #??# #?# "" | | #??? #????# ### #??# #?# | | #??? #??### ### #### ### "" | | #??? """ #??# ##+####### # "" | | #####?? """ #??# # "" | | #?? """ #??# > * + | | #?????????????????# """ # "" | | #?????????????????# #### """ # "" | | #?????????????????#######??# """ ## "" | | #????????????? ????????????# h ## | | #???????????? ????????????# ###+#### | | ??????????? ??????????????# """ # | | ???????????? ???????????????# """ # """"" | | #############+################## """ # """"" | | % @ """ # """"" | | s g # """"" | | [ |=]|g l """ #[ | | ===!k """ # """"" | | ]%!=!! l """ # """"" | | ######+###################+### ""? ?# """"" | | ????? ?????????????????? ? ??????+ """"" | | ????? ?????????????????? #? """?????# | | ???? ????????????????? #?? """?????# | | ????"" ?????????????????? #??? ""??????##+##### | | ???""" ????????????????? +????""? | | ???""" ????????????????? #??????? | | ?? ????????????????? #??????? | | ?????""" ????????????????? #???????? | | ?????""" ???????????????? ???C?????############ | | ?????" ?????????????????????????????????????? | | ???????? ????????????????????h???????????????? | | ???????? ????????????????????????????????????? | | ?????????##??????????????????????????????????????? | | #??????????????????????????????????????????????? | | ???????????????????????????????????????????? | | ???????????????????????????????????????????? | | ""????????????????????????????????????????????? | | "?????????????????????????????????????????????? | | "?????????????????????????????????????????????? | +----------------------------------------------------+ Best States ------------- Heat Dissipation 105 Energy Generation 29 Energy Capacity 460 Matter Stores 300 Matter Capacity 300 Sight Range 16 Terrain Scan Density 10 Jamming Range 14 Armor Coverage 400 Resistance: KI 20 Evasion (%) 55 Recoil Reduction 3 Energy Filtering 30 Particle Charging 15 Item Schematics ----------------- Lrg. Storage Unit | -10/Materials | Hacked Med. Storage Unit | -10/Materials | Hacked Adv. System Restoration Module | -7/Factory | Scanalyzed Imp. Powered Armor | -7/Factory | Scanalyzed Phase Cannon | -6/Factory | Scanalyzed Imp. Titanium Leg | -6/Factory | Scanalyzed Adv. Myomer Leg | -6/Factory | Scanalyzed Combat Drone Bay | -6/Data Miner | Free Lgt. Regenerative Plating | -6/Data Miner | Free Enh. Armored Leg | -6/Data Miner | Free Prc. Energy Filter | -6/Data Miner | Free Cld. Plasma Rifle | -6/Data Miner | Free Field Propulsion Array | -6/Data Miner | Free Adv. Coolant Injector | -6/Data Miner | Free Railgun | -6/Data Miner | Free Mni. Drone Bay | -6/Data Miner | Free Adv. Launcher Guidance Computer | -6/Data Miner | Free Biometal Medium Treads | -6/Data Miner | Free Robot Schematics ------------------ M-13 Machinist | -10/Materials | Hacked M-28 Smith | -6/Factory | Hacked Fabricated ------------ Enh. Coil Gun | x1 | -7/Factory | Preloaded M-22 Extractor | x1 | -6/Factory | Preloaded Nuclear Pulse Thruster | x2 | -6/Factory | Preloaded Adv. Myomer Leg | x1 | -6/Factory M-28 Smith | x1 | -5/Factory Lgt. Regenerative Plating | x1 | -5/Factory Alien Tech Used ----------------- None Achievements -------------- None Challenges ------------ None Game ------ Seed SubdwellerNeutronCutter Manual? 0 Play Time 02:33:38 Cumulative 423.8 hours Start 2024.06.09 @ 11:53:23 End 2024.06.09 @ 22:34:42 Sessions 5 Manual Loads 0 Difficulty Rogue Special Mode None Game No. 266 Rogue 263 Adventurer 3 Explorer 0 Win Type - Total 7 Types 6/0/1/0/0/0/0/0/0 Lore% 69 Gallery% 77 Achievement% 66 Wizard Run 0 Options --------- Layout 0 ASCII 0 Keyboard 0 Movement Numpad Keybinds 0 Fullscreen 1 Font 18/SmallcapsGlow Map View 76x50 Zoom Use 0% Tactical HUD 1 Map Filters NONE Filters NONE Steam 1 RUN: da671a13-0caa-4fa0-984f-13120d5d90a0